[Event "44th Chess Olympiad Women 2022"]
[Site "Chennai"]
[Date "2022.08.03"]
[Round "6.38"]
[White "Dubois, Martine"]
[Black "Berzina, Ilze"]
[Result "1/2-1/2"]
[WhiteElo "1782"]
[BlackElo "2141"]
[Annotator "NA RC"]
[PlyCount "73"]
[EventDate "2022.??.??"]
[TimeControl "60"]

1. e4 {[%emt 0:00:03]} c6 {[%emt 0:00:11]} 2. Nf3 {[%emt 0:00:12]} d5 {[%emt 0:
00:00]} 3. exd5 {[%emt 0:00:08]} cxd5 {[%emt 0:00:10]} 4. Ne5 {[%emt 0:00:13]}
a6 {[%emt 0:00:25]} 5. d4 {[%emt 0:00:18]} Nc6 {[%emt 0:00:25]} 6. c3 {[%emt 0:
00:00]} Nxe5 {[%emt 0:00:53]} 7. dxe5 {[%emt 0:00:05]} Bf5 {[%emt 0:00:24]} 8.
Bd3 {[%emt 0:04:05]} Bxd3 {[%emt 0:01:19]} 9. Qxd3 {[%emt 0:00:07]} e6 {
[%emt 0:00:22]} 10. O-O {[%emt 0:01:15]} Qc7 {[%emt 0:04:11]} 11. Bf4 {[%emt 0:
00:00]} Ne7 {[%emt 0:01:15]} 12. Re1 {[%emt 0:05:45]} h6 {[%emt 0:15:24]} 13.
Nd2 {[%emt 0:10:46]} Nf5 {[%emt 0:11:20]} 14. Nf3 {[%emt 0:09:36]} g5 {[%emt 0:
00:00]} 15. Bg3 {[%emt 0:06:48]} Bg7 {[%emt 0:01:28]} 16. Nd4 {[%emt 0:01:40]}
Nxd4 {[%emt 0:04:32]} 17. Qxd4 {[%emt 0:05:50]} Rc8 {[%emt 0:03:04]} 18. Qe3 {
[%emt 0:05:19]} Qc5 {[%emt 0:08:35]} 19. Qf3 {[%emt 0:08:07]} O-O {[%emt 0:00:
00]} 20. h4 {[%emt 0:02:03]} b5 {[%emt 0:11:01]} 21. hxg5 {[%emt 0:01:17]} hxg5
{[%emt 0:00:06]} 22. Qg4 {[%emt 0:01:40]} Qe7 {[%emt 0:01:21]} 23. f4 {[%emt 0:
00:00]} Rc4 {[%emt 0:01:23]} 24. b3 {[%emt 0:07:29]} Rxc3 {[%emt 0:01:31]} 25.
fxg5 {[%emt 0:00:26]} Rfc8 {[%emt 0:01:08]} 26. Rf1 {[%emt 0:03:42]} Qc5+ {
[%emt 0:01:56]} 27. Bf2 {[%emt 0:02:19]} Qc7 {[%emt 0:01:38]} 28. Bd4 {[%emt 0:
00:00]} Bxe5 {[%emt 0:00:58]} 29. Bxc3 {[%emt 0:02:05]} Bxc3 {[%emt 0:00:13]}
30. Rad1 {[%emt 0:03:16]} Kg7 {[%emt 0:03:01]} 31. Rf3 {[%emt 0:02:03]} Rh8 {
[%emt 0:04:26]} 32. Rh3 {[%emt 0:00:07]} Qc5+ {[%emt 0:00:54]} 33. Kh1 {
[%emt 0:02:14]} b4 {[%emt 0:03:00]} 34. Rxh8 {[%emt 0:00:22]} Kxh8 {[%emt 0:00:
00]} 35. Rd3 {[%emt 0:02:30]} Qf2 {[%emt 0:00:37]} 36. Rh3+ {[%emt 0:01:20]}
Kg7 {[%emt 0:00:41]} 37. Qd1 {[%emt 0:02:23]} 1/2-1/2

[Event "44th Chess Olympiad Women 2022"]
[Site "Chennai"]
[Date "2022.08.03"]
[Round "6.38"]
[White "Jansone, Melanija Luize"]
[Black "Berezovsky, Fiorina"]
[Result "1/2-1/2"]
[WhiteElo "1584"]
[BlackElo "1544"]
[Annotator "NA RC"]
[PlyCount "128"]
[EventDate "2022.??.??"]
[TimeControl "60"]

1. e4 {[%emt 0:00:03]} c5 {[%emt 0:00:18]} 2. Nf3 {[%emt 0:00:57]} e6 {[%emt 0:
00:00]} 3. d4 {[%emt 0:00:51]} cxd4 {[%emt 0:00:57]} 4. Nxd4 {[%emt 0:00:13]}
a6 {[%emt 0:00:32]} 5. Bd3 {[%emt 0:02:15]} Nf6 {[%emt 0:01:55]} 6. Qe2 {
[%emt 0:03:51]} d6 {[%emt 0:02:31]} 7. a4 {[%emt 0:09:08]} Be7 {[%emt 0:04:10]}
8. Nc3 {[%emt 0:01:23]} O-O {[%emt 0:02:27]} 9. O-O {[%emt 0:01:55]} Nc6 {
[%emt 0:05:53]} 10. Nxc6 {[%emt 0:13:36]} bxc6 {[%emt 0:00:11]} 11. e5 {
[%emt 0:11:05]} dxe5 {[%emt 0:03:02]} 12. Qxe5 {[%emt 0:01:06]} Bd6 {[%emt 0:
00:00]} 13. Qg5 {[%emt 0:00:44]} Qc7 {[%emt 0:03:08]} 14. Qh4 {[%emt 0:01:44]}
Rb8 {[%emt 0:11:23]} 15. Bg5 {[%emt 0:07:32]} Rb4 {[%emt 0:01:36]} 16. f4 {
[%emt 0:00:58]} Rd8 {[%emt 0:13:33]} 17. Bxf6 {[%emt 0:06:07]} gxf6 {[%emt 0:
00:00]} 18. Qxh7+ {[%emt 0:05:09]} Kf8 {[%emt 0:00:18]} 19. Ne4 {[%emt 0:01:41]
} f5 {[%emt 0:06:59]} 20. Qh8+ {[%emt 0:07:45]} Ke7 {[%emt 0:00:10]} 21. Qh4+ {
[%emt 0:01:33]} Kf8 {[%emt 0:01:22]} 22. Nxd6 {[%emt 0:14:50]} Qxd6 {[%emt 0:
00:00]} 23. Rad1 {[%emt 0:00:21]} Rd4 {[%emt 0:01:48]} 24. Rf3 {[%emt 0:01:43]}
c5 {[%emt 0:04:05]} 25. Rh3 {[%emt 0:04:18]} Rxf4 {[%emt 0:18:12]} 26. Qf6 {
[%emt 0:01:31]} Qd4+ {[%emt 0:00:42]} 27. Qxd4 {[%emt 0:00:04]} cxd4 {[%emt 0:
00:00]} 28. Rh8+ {[%emt 0:00:44]} Ke7 {[%emt 0:00:02]} 29. Rxd8 {[%emt 0:00:14]
} Kxd8 {[%emt 0:00:01]} 30. g3 {[%emt 0:00:15]} Rg4 {[%emt 0:00:27]} 31. Be2 {
[%emt 0:00:10]} Re4 {[%emt 0:00:44]} 32. Bf3 {[%emt 0:00:14]} Re3 {[%emt 0:00:
00]} 33. Rxd4+ {[%emt 0:00:12]} Ke7 {[%emt 0:00:46]} 34. Kf2 {[%emt 0:00:05]}
Re5 {[%emt 0:00:28]} 35. b3 {[%emt 0:00:41]} Rc5 {[%emt 0:01:11]} 36. c4 {
[%emt 0:00:50]} Rc7 {[%emt 0:00:44]} 37. h4 {[%emt 0:00:12]} e5 {[%emt 0:00:26]
} 38. Rd5 {[%emt 0:00:29]} e4 {[%emt 0:00:46]} 39. Bd1 {[%emt 0:00:24]} Be6 {
[%emt 0:01:09]} 40. Rd4 {[%emt 0:00:25]} Kf6 {[%emt 0:00:46]} 41. Ke3 {[%emt 0:
00:00]} Ke5 {[%emt 0:31:02]} 42. h5 {[%emt 0:00:53]} Rc8 {[%emt 0:00:15]} 43.
Bc2 {[%emt 0:01:00]} Rg8 {[%emt 0:03:40]} 44. Bxe4 {[%emt 0:00:23]} Rxg3+ {
[%emt 0:03:30]} 45. Bf3 {[%emt 0:00:16]} Rg1 {[%emt 0:00:00]} 46. Rh4 {[%emt 0:
00:00]} Rb1 {[%emt 0:00:00]} 47. h6 {[%emt 0:00:00]} Rxb3+ {[%emt 0:00:00]} 48.
Kf2 {[%emt 0:00:00]} Rb2+ {[%emt 0:00:00]} 49. Kg3 {[%emt 0:00:00]} Rb8 {
[%emt 0:00:00]} 50. a5 {[%emt 0:00:00]} Rg8+ {[%emt 0:00:00]} 51. Kf2 {[%emt 0:
00:00]} f4 {[%emt 0:00:00]} 52. Rh5+ {[%emt 0:00:00]} f5 {[%emt 0:00:00]} 53.
c5 {[%emt 0:00:00]} Rh8 {[%emt 0:00:00]} 54. Bb7 {[%emt 0:00:00]} Bc4 {[%emt 0:
00:00]} 55. h7 {[%emt 0:00:00]} Kd4 {[%emt 0:01:32]} 56. c6 {[%emt 0:00:00]}
Bd5 {[%emt 0:01:11]} 57. Rxf5 {[%emt 0:00:00]} Bxc6 {[%emt 0:01:08]} 58. Bxc6 {
[%emt 0:00:00]} Rxh7 {[%emt 0:00:13]} 59. Kf3 {[%emt 0:00:27]} Rc7 {[%emt 0:00:
00]} 60. Be4 {[%emt 0:01:48]} Rc5 {[%emt 0:01:28]} 61. Rxc5 {[%emt 0:02:39]}
Kxc5 {[%emt 0:00:05]} 62. Bb7 {[%emt 0:00:04]} Kb4 {[%emt 0:00:07]} 63. Bxa6 {
[%emt 0:00:10]} Kxa5 {[%emt 0:00:07]} 64. Kxf4 {[%emt 0:00:10]} Kxa6 {[%emt 0:
00:00]} 1/2-1/2

[Event "44th Chess Olympiad Women 2022"]
[Site "Chennai"]
[Date "2022.08.03"]
[Round "6.38"]
[White "Ter-Avetisjana, Agnesa Stepania"]
[Black "Jose de Ribbegren, Kenia"]
[Result "1-0"]
[WhiteElo "1962"]
[BlackElo "1787"]
[Annotator "NA RC"]
[PlyCount "75"]
[EventDate "2022.??.??"]
[TimeControl "60"]

1. e4 {[%emt 0:00:01]} d5 {[%emt 0:00:03]} 2. exd5 {[%emt 0:00:07]} Nf6 {
[%emt 0:01:02]} 3. d4 {[%emt 0:01:17]} Nxd5 {[%emt 0:00:30]} 4. Nf3 {[%emt 0:
00:00]} Bf5 {[%emt 0:04:47]} 5. a3 {[%emt 0:00:38]} c6 {[%emt 0:03:32]} 6. c4 {
[%emt 0:02:06]} Nf6 {[%emt 0:00:31]} 7. Nc3 {[%emt 0:00:12]} e6 {[%emt 0:01:18]
} 8. Bd3 {[%emt 0:01:01]} Bg4 {[%emt 0:04:38]} 9. Be3 {[%emt 0:02:40]} Bd6 {
[%emt 0:03:08]} 10. O-O {[%emt 0:01:19]} O-O {[%emt 0:00:10]} 11. h3 {[%emt 0:
00:00]} Bh5 {[%emt 0:02:41]} 12. b4 {[%emt 0:00:21]} Nbd7 {[%emt 0:01:21]} 13.
Be2 {[%emt 0:07:23]} Qe7 {[%emt 0:07:41]} 14. Re1 {[%emt 0:09:06]} Rfd8 {
[%emt 0:07:20]} 15. Qb3 {[%emt 0:02:39]} Rac8 {[%emt 0:09:49]} 16. Rad1 {
[%emt 0:08:42]} Bb8 {[%emt 0:01:02]} 17. Ne5 {[%emt 0:05:30]} Bxe2 {[%emt 0:00:
00]} 18. Nxe2 {[%emt 0:01:32]} Nxe5 {[%emt 0:02:41]} 19. dxe5 {[%emt 0:00:06]}
Bxe5 {[%emt 0:06:24]} 20. Bxa7 {[%emt 0:02:25]} Nd7 {[%emt 0:03:22]} 21. Be3 {
[%emt 0:05:00]} Qh4 {[%emt 0:06:43]} 22. Nd4 {[%emt 0:05:41]} Nc5 {[%emt 0:00:
00]} 23. bxc5 {[%emt 0:07:15]} Bxd4 {[%emt 0:00:09]} 24. Bxd4 {[%emt 0:00:32]}
Rxd4 {[%emt 0:00:48]} 25. Qxb7 {[%emt 0:01:38]} Rcd8 {[%emt 0:00:26]} 26. Rxd4
{[%emt 0:04:35]} Qxd4 {[%emt 0:00:09]} 27. Qxc6 {[%emt 0:00:29]} Qxc4 {[%emt 0:
00:00]} 28. Qc7 {[%emt 0:02:28]} Qd3 {[%emt 0:03:27]} 29. c6 {[%emt 0:05:21]}
g6 {[%emt 0:03:33]} 30. Qb7 {[%emt 0:04:54]} Qc3 {[%emt 0:07:27]} 31. Re3 {
[%emt 0:01:00]} Qf6 {[%emt 0:03:09]} 32. Rf3 {[%emt 0:01:20]} Qa1+ {[%emt 0:00:
00]} 33. Kh2 {[%emt 0:00:11]} Rf8 {[%emt 0:00:19]} 34. c7 {[%emt 0:02:07]} Qe5+
{[%emt 0:00:08]} 35. g3 {[%emt 0:00:06]} Qc5 {[%emt 0:00:07]} 36. Rxf7 {
[%emt 0:01:03]} Kxf7 {[%emt 0:01:38]} 37. c8=Q+ {[%emt 0:00:09]} Qe7 38. Qxe7+
{[%emt 0:00:10]} 1-0

[Event "44th Chess Olympiad Women 2022"]
[Site "Chennai"]
[Date "2022.08.03"]
[Round "6.39"]
[White "Al Mansouri, Moza"]
[Black "Verbin, Valentina"]
[Result "0-1"]
[WhiteElo "1606"]
[BlackElo "2069"]
[Annotator "NA RC"]
[PlyCount "70"]
[EventDate "2022.??.??"]
[TimeControl "60"]

1. e4 {[%emt 0:00:04]} c5 {[%emt 0:00:13]} 2. Nf3 {[%emt 0:00:10]} d6 {[%emt 0:
00:00]} 3. d4 {[%emt 0:00:06]} cxd4 {[%emt 0:00:13]} 4. Nxd4 {[%emt 0:00:07]}
Nf6 {[%emt 0:00:24]} 5. Nc3 {[%emt 0:00:13]} a6 {[%emt 0:01:18]} 6. f4 {
[%emt 0:01:31]} e5 {[%emt 0:00:29]} 7. Nf3 {[%emt 0:01:48]} Qc7 {[%emt 0:00:40]
} 8. Be3 {[%emt 0:04:54]} Nbd7 {[%emt 0:02:03]} 9. Qd2 {[%emt 0:05:01]} b5 {
[%emt 0:07:06]} 10. O-O-O {[%emt 0:05:46]} Bb7 {[%emt 0:04:42]} 11. Nd5 {
[%emt 0:08:14]} Nxd5 {[%emt 0:07:42]} 12. exd5 {[%emt 0:00:14]} Rc8 {[%emt 0:
00:00]} 13. Qf2 {[%emt 0:05:31]} Nf6 {[%emt 0:07:54]} 14. Bb6 {[%emt 0:02:38]}
Ng4 {[%emt 0:01:21]} 15. Bxc7 {[%emt 0:02:01]} Nxf2 {[%emt 0:00:08]} 16. Bb6 {
[%emt 0:02:05]} Nxd1 {[%emt 0:02:07]} 17. Kxd1 {[%emt 0:00:14]} e4 {[%emt 0:00:
00]} 18. Nd4 {[%emt 0:01:35]} Bxd5 {[%emt 0:00:17]} 19. Nf5 {[%emt 0:03:48]} g6
{[%emt 0:04:38]} 20. Ne3 {[%emt 0:01:46]} Be6 {[%emt 0:07:33]} 21. g4 {[%emt 0:
00:00]} Bg7 {[%emt 0:00:40]} 22. b3 {[%emt 0:00:32]} Rc6 {[%emt 0:02:01]} 23.
Ba7 {[%emt 0:01:34]} Rc7 {[%emt 0:00:33]} 24. Bb8 {[%emt 0:01:26]} Rb7 {
[%emt 0:00:33]} 25. Bxd6 {[%emt 0:00:21]} Rd7 {[%emt 0:00:08]} 26. Bg2 {
[%emt 0:01:34]} Rxd6+ {[%emt 0:00:05]} 27. Ke2 {[%emt 0:00:10]} f5 {[%emt 0:00:
00]} 28. gxf5 {[%emt 0:00:19]} gxf5 {[%emt 0:00:03]} 29. Bh3 {[%emt 0:00:43]}
Rf8 {[%emt 0:00:09]} 30. c4 {[%emt 0:00:56]} bxc4 {[%emt 0:00:23]} 31. bxc4 {
[%emt 0:00:04]} Bd4 {[%emt 0:01:06]} 32. Rd1 {[%emt 0:00:49]} Ke7 {[%emt 0:00:
00]} 33. a4 {[%emt 0:01:28]} Bxe3 {[%emt 0:00:07]} 34. Rxd6 {[%emt 0:00:09]}
Kxd6 {[%emt 0:00:04]} 35. Kxe3 {[%emt 0:00:06]} Bxc4 {[%emt 0:00:07]} 0-1

[Event "44th Chess Olympiad Women 2022"]
[Site "Chennai"]
[Date "2022.08.03"]
[Round "6.39"]
[White "Almaini, Aishah Sarhan"]
[Black "Petrenko, Svetlana"]
[Result "0-1"]
[WhiteElo "1615"]
[BlackElo "2029"]
[Annotator "NA RC"]
[PlyCount "88"]
[EventDate "2022.??.??"]
[TimeControl "60"]

1. d4 {[%emt 0:00:05]} f5 {[%emt 0:00:12]} 2. c4 {[%emt 0:00:37]} Nf6 {[%emt 0:
00:00]} 3. Nc3 {[%emt 0:00:07]} g6 {[%emt 0:00:32]} 4. Nf3 {[%emt 0:05:23]} Bg7
{[%emt 0:00:13]} 5. g3 {[%emt 0:02:30]} O-O {[%emt 0:05:56]} 6. Bg2 {[%emt 0:
00:00]} e6 {[%emt 0:04:58]} 7. O-O {[%emt 0:01:18]} d5 {[%emt 0:02:36]} 8. Ne5
{[%emt 0:12:10]} c6 {[%emt 0:01:17]} 9. Bg5 {[%emt 0:07:30]} h6 {[%emt 0:04:42]
} 10. Bd2 {[%emt 0:15:24]} Kh7 {[%emt 0:00:49]} 11. cxd5 {[%emt 0:06:52]} exd5
{[%emt 0:00:32]} 12. f4 {[%emt 0:04:51]} b5 {[%emt 0:03:29]} 13. b4 {[%emt 0:
00:00]} Qb6 {[%emt 0:06:17]} 14. e3 {[%emt 0:01:23]} Nbd7 {[%emt 0:00:58]} 15.
Qc2 {[%emt 0:06:01]} Bb7 {[%emt 0:05:24]} 16. a4 {[%emt 0:05:15]} a6 {[%emt 0:
00:00]} 17. a5 {[%emt 0:01:06]} Qd8 {[%emt 0:00:42]} 18. h3 {[%emt 0:00:41]}
Nxe5 {[%emt 0:02:58]} 19. fxe5 {[%emt 0:00:39]} Ne4 {[%emt 0:03:00]} 20. Nxe4 {
[%emt 0:05:34]} dxe4 {[%emt 0:03:00]} 21. Bc3 {[%emt 0:04:18]} Qg5 {[%emt 0:00:
00]} 22. Qf2 {[%emt 0:00:10]} Bc8 {[%emt 0:00:32]} 23. Rac1 {[%emt 0:06:56]}
Be6 {[%emt 0:00:30]} 24. Kh2 {[%emt 0:00:25]} Qh5 {[%emt 0:09:23]} 25. Rg1 {
[%emt 0:03:40]} Kh8 {[%emt 0:02:08]} 26. Bf1 {[%emt 0:00:52]} g5 {[%emt 0:00:
00]} 27. Bd2 {[%emt 0:00:42]} Rac8 {[%emt 0:02:16]} 28. Be2 {[%emt 0:00:08]}
Qe8 {[%emt 0:04:15]} 29. Qg2 {[%emt 0:00:39]} Rd8 {[%emt 0:06:32]} 30. Rcf1 {
[%emt 0:02:06]} Bxe5 {[%emt 0:07:24]} 31. Bc3 {[%emt 0:03:40]} Bg7 {[%emt 0:00:
00]} 32. g4 {[%emt 0:01:05]} f4 {[%emt 0:05:41]} 33. exf4 {[%emt 0:01:54]} gxf4
{[%emt 0:00:27]} 34. Qxe4 {[%emt 0:00:17]} Bd5 {[%emt 0:00:47]} 35. Qd3 {
[%emt 0:00:32]} Bc4 {[%emt 0:00:16]} 36. Qd2 {[%emt 0:00:35]} Qxe2+ {[%emt 0:
00:00]} 37. Qxe2 {[%emt 0:00:32]} Bxe2 {[%emt 0:00:07]} 38. Re1 {[%emt 0:00:02]
} f3 {[%emt 0:00:13]} 39. Rh1 {[%emt 0:00:32]} Bxd4 {[%emt 0:00:14]} 40. Bxd4+
{[%emt 0:01:03]} Rxd4 {[%emt 0:00:08]} 41. Rc1 {[%emt 0:30:15]} Bc4 {[%emt 0:
00:00]} 42. Rhe1 {[%emt 0:00:42]} f2 {[%emt 0:00:37]} 43. Re7 {[%emt 0:00:29]}
f1=Q {[%emt 0:01:36]} 44. Rxf1 {[%emt 0:00:14]} Bxf1 {[%emt 0:00:30]} 0-1

[Event "44th Chess Olympiad Women 2022"]
[Site "Chennai"]
[Date "2022.08.03"]
[Round "6.39"]
[White "Gitu, Paula-Alexandra"]
[Black "Al Maamari, Wafia Darwish"]
[Result "1/2-1/2"]
[WhiteElo "2109"]
[BlackElo "1841"]
[Annotator "NA RC"]
[PlyCount "94"]
[EventDate "2022.??.??"]
[TimeControl "60"]

1. e4 {[%emt 0:00:03]} c5 {[%emt 0:00:05]} 2. Nf3 {[%emt 0:00:03]} g6 {[%emt 0:
00:00]} 3. c3 {[%emt 0:00:05]} d5 {[%emt 0:00:20]} 4. exd5 {[%emt 0:00:49]}
Qxd5 {[%emt 0:00:06]} 5. d4 {[%emt 0:01:13]} Bg7 {[%emt 0:00:32]} 6. Be3 {
[%emt 0:06:13]} cxd4 {[%emt 0:02:40]} 7. Bxd4 {[%emt 0:01:22]} Bxd4 {[%emt 0:
00:00]} 8. Qxd4 {[%emt 0:01:14]} Qxd4 {[%emt 0:00:51]} 9. Nxd4 {[%emt 0:00:43]}
a6 {[%emt 0:01:05]} 10. Bc4 {[%emt 0:06:43]} e5 {[%emt 0:03:30]} 11. Nf3 {
[%emt 0:02:05]} Nc6 {[%emt 0:05:36]} 12. Ng5 {[%emt 0:05:48]} Nh6 {[%emt 0:00:
00]} 13. Nd2 {[%emt 0:21:41]} Ke7 {[%emt 0:04:44]} 14. O-O {[%emt 0:04:50]} Rd8
{[%emt 0:04:29]} 15. Rad1 {[%emt 0:07:20]} Bf5 {[%emt 0:07:50]} 16. Bb3 {
[%emt 0:03:16]} Na5 {[%emt 0:12:55]} 17. Ngf3 {[%emt 0:06:03]} f6 {[%emt 0:00:
00]} 18. Rfe1 {[%emt 0:05:20]} Nxb3 {[%emt 0:05:01]} 19. Nxb3 {[%emt 0:06:22]}
Rxd1 {[%emt 0:01:33]} 20. Rxd1 {[%emt 0:00:05]} Bc2 {[%emt 0:00:05]} 21. Rd2 {
[%emt 0:01:18]} Bxb3 {[%emt 0:00:09]} 22. axb3 {[%emt 0:00:03]} Nf7 {[%emt 0:
00:00]} 23. Kf1 {[%emt 0:00:54]} Nd6 {[%emt 0:03:17]} 24. Ke2 {[%emt 0:00:32]}
Rc8 {[%emt 0:03:17]} 25. Ne1 {[%emt 0:00:53]} Ne4 {[%emt 0:01:15]} 26. Rd1 {
[%emt 0:01:39]} Nc5 {[%emt 0:00:35]} 27. b4 {[%emt 0:00:27]} Na4 {[%emt 0:00:
00]} 28. Rd2 {[%emt 0:01:05]} Rc7 {[%emt 0:02:21]} 29. Rc2 {[%emt 0:00:50]} e4
{[%emt 0:03:22]} 30. c4 {[%emt 0:04:23]} Nb6 {[%emt 0:00:45]} 31. b3 {[%emt 0:
00:00]} f5 {[%emt 0:02:21]} 32. Rd2 {[%emt 0:01:42]} Nd7 {[%emt 0:01:18]} 33.
Nc2 {[%emt 0:06:39]} Ne5 {[%emt 0:00:58]} 34. Ne3 {[%emt 0:02:08]} Ke6 {
[%emt 0:07:45]} 35. Nd5 {[%emt 0:00:58]} Rd7 {[%emt 0:00:50]} 36. f3 {[%emt 0:
00:00]} exf3+ {[%emt 0:01:53]} 37. gxf3 {[%emt 0:00:02]} Nc6 {[%emt 0:03:14]}
38. Ke3 {[%emt 0:02:46]} g5 {[%emt 0:01:03]} 39. Rg2 {[%emt 0:00:28]} h6 {
[%emt 0:03:07]} 40. h4 {[%emt 0:00:20]} Rg7 {[%emt 0:04:47]} 41. hxg5 {[%emt 0:
00:00]} hxg5 {[%emt 0:00:14]} 42. Rh2 {[%emt 0:00:22]} Ke5 {[%emt 0:12:01]} 43.
Rh8 {[%emt 0:05:54]} f4+ {[%emt 0:02:46]} 44. Kd3 {[%emt 0:00:15]} Nd4 {
[%emt 0:02:14]} 45. Re8+ {[%emt 0:00:06]} Ne6 {[%emt 0:00:04]} 46. Rh8 {
[%emt 0:07:29]} Nd4 {[%emt 0:03:04]} 47. Re8+ {[%emt 0:00:04]} Ne6 {[%emt 0:00:
00]} 1/2-1/2

[Event "44th Chess Olympiad Women 2022"]
[Site "Chennai"]
[Date "2022.08.03"]
[Round "6.39"]
[White "Mihailova, Alina"]
[Black "Mariam, Essa"]
[Result "1-0"]
[WhiteElo "1926"]
[BlackElo "1591"]
[Annotator "NA RC"]
[PlyCount "111"]
[EventDate "2022.??.??"]
[TimeControl "60"]

1. d4 {[%emt 0:00:03]} Nf6 {[%emt 0:00:04]} 2. c4 {[%emt 0:00:09]} c5 {[%emt 0:
00:00]} 3. d5 {[%emt 0:00:17]} e6 {[%emt 0:00:06]} 4. Nc3 {[%emt 0:00:17]} exd5
{[%emt 0:00:04]} 5. cxd5 {[%emt 0:00:05]} d6 {[%emt 0:00:06]} 6. g3 {[%emt 0:
00:00]} g6 {[%emt 0:00:04]} 7. Bg2 {[%emt 0:00:05]} Bg7 {[%emt 0:00:04]} 8. Nf3
{[%emt 0:00:08]} O-O {[%emt 0:00:27]} 9. O-O {[%emt 0:00:06]} a6 {[%emt 0:00:
00]} 10. a4 {[%emt 0:00:10]} Re8 {[%emt 0:00:05]} 11. Nd2 {[%emt 0:03:13]} Nbd7
{[%emt 0:01:46]} 12. Nc4 {[%emt 0:01:35]} Ne5 {[%emt 0:00:39]} 13. Nxe5 {
[%emt 0:06:19]} Rxe5 {[%emt 0:00:04]} 14. e4 {[%emt 0:08:25]} Re8 {[%emt 0:00:
00]} 15. h3 {[%emt 0:06:58]} Rb8 {[%emt 0:01:57]} 16. Qd3 {[%emt 0:03:43]} b5 {
[%emt 0:14:36]} 17. axb5 {[%emt 0:13:04]} axb5 {[%emt 0:00:13]} 18. Nxb5 {
[%emt 0:02:20]} Qb6 {[%emt 0:01:34]} 19. Nc3 {[%emt 0:01:19]} Nd7 {[%emt 0:00:
00]} 20. Kh2 {[%emt 0:22:15]} Ne5 {[%emt 0:01:36]} 21. Qe2 {[%emt 0:00:44]} c4
{[%emt 0:02:10]} 22. Na4 {[%emt 0:01:50]} Qc7 {[%emt 0:07:51]} 23. Qc2 {
[%emt 0:04:01]} Nd3 {[%emt 0:03:43]} 24. Ra3 {[%emt 0:04:06]} Bd7 {[%emt 0:00:
00]} 25. Nc3 {[%emt 0:06:15]} Rec8 {[%emt 0:02:34]} 26. f4 {[%emt 0:05:38]} Qb6
{[%emt 0:02:21]} 27. Nd1 {[%emt 0:06:18]} Bd4 {[%emt 0:10:15]} 28. g4 {[%emt 0:
00:00]} Qc5 {[%emt 0:12:59]} 29. Ra1 {[%emt 0:01:22]} Ra8 {[%emt 0:01:56]} 30.
Rxa8 {[%emt 0:00:12]} Rxa8 {[%emt 0:00:05]} 31. Nc3 {[%emt 0:00:51]} Rb8 {
[%emt 0:05:08]} 32. Rd1 {[%emt 0:00:18]} Nxc1 {[%emt 0:05:39]} 33. Rxc1 {
[%emt 0:00:33]} Be3 {[%emt 0:00:08]} 34. Rf1 {[%emt 0:00:25]} Qd4 {[%emt 0:00:
00]} 35. Nd1 {[%emt 0:00:34]} Bxf4+ {[%emt 0:02:06]} 36. Kh1 {[%emt 0:00:17]}
Be5 {[%emt 0:00:23]} 37. Rf3 {[%emt 0:00:50]} Ra8 {[%emt 0:03:41]} 38. Nc3 {
[%emt 0:00:33]} Ra1+ {[%emt 0:00:49]} 39. Rf1 {[%emt 0:00:12]} Rxf1+ {[%emt 0:
00:00]} 40. Bxf1 {[%emt 0:00:02]} Qe3 {[%emt 0:04:24]} 41. Qe2 {[%emt 0:30:18]}
Qc1 {[%emt 0:32:39]} 42. Kg2 {[%emt 0:00:45]} Bxc3 {[%emt 0:03:10]} 43. bxc3 {
[%emt 0:00:02]} Bb5 {[%emt 0:00:11]} 44. Qf3 {[%emt 0:00:19]} Kg7 {[%emt 0:00:
00]} 45. h4 {[%emt 0:00:00]} Qd2+ {[%emt 0:00:00]} 46. Kg1 {[%emt 0:00:00]} Ba4
{[%emt 0:00:00]} 47. g5 {[%emt 0:00:00]} Bd1 {[%emt 0:00:00]} 48. Qg3 {[%emt 0:
00:00]} Be2 {[%emt 0:00:00]} 49. Qf2 {[%emt 0:00:00]} Qxc3 {[%emt 0:00:00]} 50.
Bxe2 {[%emt 0:00:00]} Qc1+ {[%emt 0:00:00]} 51. Kg2 {[%emt 0:00:00]} c3 {
[%emt 0:00:00]} 52. Bd3 {[%emt 0:00:00]} Qb2 {[%emt 0:00:00]} 53. Qxb2 {
[%emt 0:00:00]} cxb2 {[%emt 0:00:00]} 54. e5 {[%emt 0:00:25]} dxe5 {[%emt 0:00:
00]} 55. d6 {[%emt 0:00:13]} Kf8 {[%emt 0:00:00]} 56. Kf3 {[%emt 0:00:12]} 1-0

[Event "44th Chess Olympiad Women 2022"]
[Site "Chennai"]
[Date "2022.08.03"]
[Round "6.40"]
[White "Cordero, Daniela"]
[Black "Mongeli, Sasha"]
[Result "1-0"]
[WhiteElo "2005"]
[BlackElo "1672"]
[Annotator "NA RC"]
[PlyCount "91"]
[EventDate "2022.??.??"]
[TimeControl "60"]

1. d4 {[%emt 0:00:13]} d5 {[%emt 0:01:13]} 2. Nf3 {[%emt 0:00:11]} Nf6 {
[%emt 0:00:36]} 3. c4 {[%emt 0:00:09]} c6 {[%emt 0:01:04]} 4. Qc2 {[%emt 0:00:
00]} Bg4 {[%emt 0:03:25]} 5. Ne5 {[%emt 0:02:02]} Nbd7 {[%emt 0:07:03]} 6. Nxg4
{[%emt 0:00:31]} Nxg4 {[%emt 0:00:14]} 7. f3 {[%emt 0:09:10]} Ngf6 {[%emt 0:00:
00]} 8. e4 {[%emt 0:08:21]} e6 {[%emt 0:12:35]} 9. cxd5 {[%emt 0:04:58]} cxd5 {
[%emt 0:00:45]} 10. e5 {[%emt 0:00:59]} Ng8 {[%emt 0:00:34]} 11. Be3 {[%emt 0:
00:00]} Bb4+ {[%emt 0:09:10]} 12. Nc3 {[%emt 0:02:43]} Rc8 {[%emt 0:05:23]} 13.
Qb3 {[%emt 0:06:10]} Qb6 {[%emt 0:02:08]} 14. Kf2 {[%emt 0:07:25]} Bxc3 {
[%emt 0:07:05]} 15. bxc3 {[%emt 0:00:08]} Qxb3 {[%emt 0:00:14]} 16. axb3 {
[%emt 0:00:04]} a6 {[%emt 0:00:31]} 17. c4 {[%emt 0:01:43]} Ne7 {[%emt 0:02:06]
} 18. Bd3 {[%emt 0:01:57]} O-O {[%emt 0:01:14]} 19. f4 {[%emt 0:07:15]} Nb6 {
[%emt 0:03:37]} 20. c5 {[%emt 0:03:00]} Nd7 {[%emt 0:05:34]} 21. b4 {[%emt 0:
00:00]} Nc6 {[%emt 0:02:02]} 22. Rhb1 {[%emt 0:10:07]} Na7 {[%emt 0:01:55]} 23.
b5 {[%emt 0:01:21]} Nxb5 {[%emt 0:01:26]} 24. Bxb5 {[%emt 0:00:05]} axb5 {
[%emt 0:00:07]} 25. Rxb5 {[%emt 0:00:08]} Rc7 {[%emt 0:14:55]} 26. Ra7 {
[%emt 0:00:54]} Rb8 {[%emt 0:00:34]} 27. Bd2 {[%emt 0:00:30]} Nf8 {[%emt 0:00:
00]} 28. Ba5 {[%emt 0:00:41]} Rd7 {[%emt 0:00:43]} 29. c6 {[%emt 0:01:55]} Re7
{[%emt 0:03:52]} 30. Raxb7 {[%emt 0:03:44]} Rbe8 {[%emt 0:02:17]} 31. Bb4 {
[%emt 0:00:27]} Rxb7 {[%emt 0:00:43]} 32. cxb7 {[%emt 0:00:09]} Nd7 {[%emt 0:
00:00]} 33. Bd6 {[%emt 0:00:21]} f6 {[%emt 0:06:50]} 34. Rc5 {[%emt 0:02:45]}
Nxc5 {[%emt 0:01:32]} 35. dxc5 {[%emt 0:00:06]} Kf7 {[%emt 0:00:22]} 36. c6 {
[%emt 0:00:10]} fxe5 {[%emt 0:00:30]} 37. fxe5 {[%emt 0:00:17]} d4 {[%emt 0:00:
00]} 38. c7 {[%emt 0:00:10]} d3 {[%emt 0:00:08]} 39. Ke3 {[%emt 0:00:04]} Kg6 {
[%emt 0:00:52]} 40. c8=Q {[%emt 0:00:17]} Rxc8 {[%emt 0:00:09]} 41. bxc8=Q {
[%emt 0:30:07]} Kf5 {[%emt 0:30:20]} 42. g4+ {[%emt 0:00:40]} Kg5 {[%emt 0:00:
00]} 43. Qxe6 {[%emt 0:00:00]} Kh4 {[%emt 0:00:00]} 44. Kf3 {[%emt 0:00:00]} d2
{[%emt 0:00:00]} 45. Be7+ {[%emt 0:00:00]} Kh3 {[%emt 0:00:00]} 46. Qd7 {
[%emt 0:00:00]} 1-0